bitfinex/quotes_BTCUSD_20220115
["timestamp","ask_amount","ask_price","bid_price","bid_amount"]
[1642212557065,0.59654115,43012.0,43007.0,0.25663414]
[1642212557467,0.59654115,43012.0,43007.0,0.31475443]
[1642212557664,0.59654115,43012.0,43007.0,0.25663414]
[1642212558264,0.59654115,43013.0,43007.0,0.25663414]
[1642212558565,0.048,43012.0,43007.0,0.25663414]
[1642212559620,0.90510664,43014.0,43007.0,0.25663414]
[1642212560324,0.94310664,43014.0,43007.0,0.25663414]
[1642212561121,0.63454115,43014.0,43007.0,0.25663414]
[1642212562123,0.63454115,43014.0,43011.0,0.42068214]
[1642212562322,0.371313,43013.0,43011.0,0.42068214]
[1642212562925,0.371313,43013.0,43008.0,0.29409454]
[1642212563166,0.048,43014.0,43008.0,0.29409454]
[1642212563567,0.59654115,43015.0,43008.0,0.29409454]
[1642212563769,0.59654115,43016.0,43008.0,0.29409454]
[1642212564067,0.59654115,43016.0,43010.0,0.42304604]
[1642212564269,0.37625,43015.0,43010.0,0.42304604]
[1642212566570,0.37625,43015.0,43014.0,0.30265052]
[1642212567416,0.69354115,43016.0,43014.0,0.30265052]
[1642212567614,0.097,43016.0,43014.0,0.30265052]
[1642212568216,0.097,43016.0,43014.0,0.54717868]
[1642212568415,0.097,43016.0,43015.0,0.9]
[1642212568619,0.097,43016.0,43014.0,0.54717868]
[1642212568814,0.59654115,43019.0,43016.0,0.05811]
[1642212569017,0.54974115,43019.0,43016.0,0.05811]
[1642212569314,0.94489264,43021.0,43014.0,0.30265052]
[1642212569516,0.69595412,43025.0,43014.0,0.30265052]
[1642212570117,0.79595412,43025.0,43014.0,0.30265052]
[1642212570416,0.86295412,43025.0,43020.0,2.65663972]
[1642212570666,0.69595412,43024.0,43018.0,0.31316284]
[1642212572469,0.85995412,43024.0,43018.0,0.31316284]
[1642212572670,0.164,43024.0,43018.0,0.31316284]
[1642212573671,0.69595412,43025.0,43018.0,0.31316284]
[1642212574320,0.69595412,43025.0,43019.0,0.11621038]
[1642212574517,0.77295412,43025.0,43019.0,0.058106]
[1642212575118,0.077,43025.0,43019.0,0.058106]
[1642212575721,1.25035412,43027.0,43019.0,0.11621038]
[1642212576124,1.25035412,43027.0,43019.0,0.17431438]
[1642212576420,0.5544,43027.0,43019.0,0.46086272]
[1642212576621,0.5544,43027.0,43019.0,0.28654834]
[1642212577222,1.25035412,43027.0,43019.0,0.28654834]
[1642212577422,1.25035412,43027.0,43019.0,0.34465334]
[1642212577723,0.59674668,43026.0,43019.0,0.34465334]
[1642212577922,0.59674668,43026.0,43020.0,0.17430177]
[1642212578168,0.59674668,43026.0,43021.0,0.28539136]
[1642212578368,0.59974668,43026.0,43020.0,0.17430177]
[1642212578567,0.59674668,43025.0,43020.0,0.17430177]
[1642212579571,0.59674668,43024.0,43020.0,0.17430177]
[1642212579969,0.59674668,43024.0,43020.0,0.116199]
[1642212580169,0.59674668,43024.0,43017.0,0.058109]
[1642212580369,0.60074668,43024.0,43018.0,0.119]
[1642212580970,0.59674668,43023.0,43018.0,0.119]
[1642212581409,0.30978112,43020.0,43018.0,0.119]
[1642212581570,0.30978112,43020.0,43014.0,0.30265052]
[1642212582019,0.30978112,43020.0,43013.0,0.058113]
[1642212582220,0.40978112,43020.0,43012.0,0.58933477]
[1642212582420,0.40978112,43020.0,43012.0,0.68533477]
[1642212582819,1.0065278,43020.0,43012.0,0.096]
[1642212583621,1.0065278,43020.0,43011.0,0.58933477]
[1642212584124,0.59674668,43016.0,43009.0,0.34027876]
[1642212584621,0.59674668,43016.0,43011.0,0.081]
[1642212585222,0.59674668,43016.0,43012.0,1.93565365]
[1642212586464,0.61474668,43016.0,43012.0,2.01065365]
[1642212586668,0.61474668,43016.0,43012.0,0.075]
[1642212586866,0.37625,43015.0,43012.0,0.075]
[1642212587066,0.1,43015.0,43012.0,0.075]
[1642212587667,0.1,43015.0,43009.0,0.34027876]
[1642212588067,0.42669109,43015.0,43009.0,0.34027876]
[1642212588267,1.02343777,43015.0,43009.0,0.34027876]
[1642212588467,1.02343777,43015.0,43013.0,2.23974838]
[1642212589070,0.69674668,43015.0,43013.0,2.23974838]
[1642212589338,0.69674668,43015.0,43008.0,0.061]
[1642212589826,0.69674668,43015.0,43006.0,0.58933477]
[1642212590226,0.69674668,43015.0,43009.0,0.27801667]
[1642212590428,0.71474668,43015.0,43009.0,0.27801667]
[1642212591230,0.26444638,43014.0,43009.0,0.27801667]
[1642212591628,0.26444638,43014.0,43009.0,2.91668093]
[1642212592027,0.69674668,43015.0,43009.0,2.91668093]
[1642212592230,0.1,43015.0,43009.0,2.91668093]
[1642212592428,0.119,43015.0,43009.0,2.98568093]
[1642212592628,0.019,43015.0,43009.0,2.98568093]
[1642212593068,0.26427193,43015.0,43009.0,2.98568093]
[1642212593468,0.26427193,43015.0,43009.0,2.70766426]
[1642212594170,0.26427193,43015.0,43009.0,2.63866426]
[1642212594369,0.24527193,43015.0,43009.0,0.044]
[1642212595768,0.24527193,43015.0,43008.0,0.31924238]
[1642212596368,0.24527193,43015.0,43010.0,2.36721861]
[1642212596568,0.71674668,43016.0,43010.0,2.36721861]
[1642212597424,0.71674668,43016.0,43010.0,2.42533861]
[1642212597624,1.03292434,43016.0,43010.0,2.42533861]
[1642212597825,0.41617766,43016.0,43010.0,2.42533861]
[1642212598027,0.41617766,43016.0,43010.0,2.36721861]
[1642212598427,0.44217766,43016.0,43010.0,2.36721861]
[1642212598626,1.03892434,43016.0,43010.0,2.36721861]
[1642212599728,1.01292434,43016.0,43010.0,2.36721861]
[1642212600578,1.03892434,43016.0,43010.0,2.42533861]
[1642212601579,0.72274668,43016.0,43010.0,2.42533861]
[1642212602383,0.69674668,43016.0,43010.0,2.42533861]
[1642212602582,0.24930876,43015.0,43010.0,2.42533861]
[1642212602983,0.84605544,43015.0,43010.0,2.42533861]
[1642212603181,0.69674668,43015.0,43010.0,2.42533861]
[1642212603382,0.59674668,43015.0,43010.0,2.42533861]
[1642212603582,0.59674668,43015.0,43011.0,0.28338442]
[1642212603784,0.59674668,43015.0,43013.0,0.058117]
[1642212604417,0.035,43015.0,43013.0,0.058117]
[1642212605219,0.035,43015.0,43011.0,0.11623668]
[1642212605620,0.035,43015.0,43010.0,2.36721861]
[1642212605822,0.69674668,43017.0,43010.0,2.36721861]
[1642212606222,0.59674668,43016.0,43010.0,2.36721861]
[1642212606923,0.59674668,43016.0,43009.0,0.01254443]
[1642212607124,0.0012717,43013.0,43009.0,0.01254443]
[1642212607328,0.42245,43012.0,43009.0,0.01254443]
[1642212607523,0.52245,43012.0,43009.0,0.01254443]
[1642212607723,0.058141,43011.0,43009.0,0.01254443]
[1642212607924,2.62557875,43010.0,43006.0,0.58933477]
[1642212608182,0.90083875,43010.0,43006.0,0.58933477]
[1642212608583,0.54858875,43010.0,43006.0,0.58933477]
[1642212608986,0.49690875,43010.0,43006.0,0.58933477]
[1642212609485,0.49690875,43010.0,43000.0,1.20694216]
[1642212609486,0.32057681,43009.0,43000.0,1.20694216]
[1642212609686,0.0462,43008.0,43000.0,1.20694216]
[1642212610085,0.0462,43008.0,43000.0,0.61760739]
[1642212612416,0.0462,43008.0,43000.0,0.61760739]
[1642212613612,0.64314924,43008.0,43000.0,0.61760739]
[1642212614010,0.74314924,43008.0,43000.0,0.61760739]
[1642212614609,0.75914924,43008.0,43000.0,0.61760739]
[1642212614808,0.1622,43008.0,43000.0,0.61760739]
[1642212615013,0.0622,43008.0,43000.0,0.61760739]
[1642212615411,0.37710263,43007.0,43000.0,0.3]
[1642212615653,0.29836474,43006.0,43000.0,0.3]
[1642212616656,0.0462,43006.0,43000.0,0.3]
[1642212617660,0.47710263,43007.0,43000.0,0.3]
[1642212617955,0.1,43007.0,43000.0,0.3]
[1642212618155,0.69694924,43008.0,43002.0,0.058131]
[1642212618355,0.69694924,43008.0,43000.0,0.3]
[1642212618556,0.71594924,43008.0,43000.0,0.3]
[1642212618956,0.49016915,43008.0,43000.0,0.3]
[1642212619401,0.49016915,43008.0,43001.0,0.058132]
[1642212619802,0.47116915,43008.0,43001.0,0.058132]
[1642212620002,0.47116915,43008.0,43000.0,0.3]
[1642212620401,0.1,43008.0,43000.0,0.3]
[1642212620602,0.016,43008.0,43001.0,0.058132]
[1642212621203,0.016,43008.0,43001.0,0.116263]
[1642212621404,0.016,43008.0,43001.0,0.058132]
[1642212621606,0.33783322,43007.0,43001.0,0.59367588]
[1642212622005,0.43783322,43007.0,43001.0,0.59367588]
[1642212622207,0.30214029,43006.0,43001.0,0.59367588]
[1642212622407,0.30214029,43006.0,43000.0,0.3]
[1642212622606,0.25287522,43003.0,43000.0,0.3]
[1642212622810,0.0462,43002.0,43000.0,0.3]
[1642212626657,0.64314924,43002.0,43000.0,0.3]
[1642212626914,1.34498666,43001.0,43000.0,0.3]
[1642212627114,0.69118666,43001.0,43000.0,0.3]
[1642212627814,0.42245,43001.0,43000.0,0.3]
[1642212628517,0.0732,43001.0,43000.0,0.3]
[1642212629716,0.0462,43001.0,43000.0,0.3]
[1642212634609,0.42245,43001.0,43000.0,0.3]
[1642212635606,0.70070827,43001.0,43000.0,0.3]
[1642212636609,0.72970827,43001.0,43000.0,0.3]
[1642212637207,0.45145,43001.0,43000.0,0.3]
[1642212637808,0.42245,43001.0,43000.0,0.3]
[1642212638459,0.45145,43001.0,43000.0,0.3]
[1642212638762,0.0752,43001.0,43000.0,0.3]
[1642212639760,0.42245,43001.0,43000.0,0.3]
[1642212640562,0.45245,43001.0,43000.0,0.3]
[1642212641806,0.42245,43001.0,43000.0,0.3]
[1642212642606,0.44845,43001.0,43000.0,0.3]
[1642212643807,0.0462,43001.0,43000.0,0.3]
[1642212644410,0.33180735,43001.0,43000.0,0.3]
[1642212644709,0.33180735,43001.0,43000.0,0.10191538]
[1642212644710,3.30920735,43001.0,43000.0,0.10191538]
[1642212644910,3.40509098,43001.0,43000.0,0.10191538]
[1642212645310,4.00204022,43001.0,43000.0,0.10191538]
[1642212645856,1.69679924,43001.0,43000.0,0.10191538]
[1642212646260,1.09985,43001.0,43000.0,0.10191538]
[1642212646566,1.12485,43001.0,43000.0,0.10191538]
[1642212646761,2.01287339,43001.0,43000.0,0.10191538]
[1642212647457,2.27528071,43001.0,43000.0,0.10191538]
[1642212647657,2.32528071,43001.0,43000.0,0.10191538]
[1642212647857,2.30028071,43001.0,43000.0,0.10191538]
[1642212648658,2.32928071,43001.0,43000.0,0.10191538]
[1642212649822,2.30028071,43001.0,43000.0,0.10191538]
[1642212650224,2.03787339,43001.0,43000.0,0.10191538]
[1642212650426,1.31047339,43001.0,43000.0,0.10191538]
[1642212650626,1.34147339,43001.0,43000.0,0.10191538]
[1642212651024,1.29527339,43001.0,43000.0,0.10191538]
[1642212651228,0.40725,43001.0,43000.0,0.10191538]
[1642212651425,0.62804512,43001.0,43000.0,0.39181223]
[1642212651624,0.62804512,43001.0,43000.0,0.10191538]
[1642212651625,1.00429512,43001.0,43000.0,0.10191538]
[1642212651826,0.97329512,43001.0,43000.0,0.10191538]
[1642212652426,0.37625,43001.0,43000.0,0.10191538]
[1642212652625,0.028,43001.0,43000.0,0.10191538]
[1642212653853,0.00604274,43005.0,43000.0,0.10191538]
[1642212654655,0.37625,43004.0,43000.0,0.10191538]
[1642212658813,0.97329512,43004.0,43000.0,0.10191538]
[1642212659514,0.37625,43004.0,43000.0,0.10191538]
[1642212662178,0.47625,43004.0,43000.0,0.10191538]
[1642212664614,0.40425,43004.0,43000.0,0.10191538]
[1642212664816,0.028,43004.0,43000.0,0.10191538]
[1642212665817,0.59704512,43005.0,43000.0,0.10191538]
[1642212666615,0.60404512,43005.0,43000.0,0.10191538]
[1642212666815,0.60404512,43005.0,43002.0,0.058133]
[1642212666816,0.007,43005.0,43002.0,0.058133]
[1642212667916,0.1,43009.0,43002.0,0.058133]
[1642212668557,0.96168307,43010.0,43002.0,0.058133]
[1642212668757,0.97068307,43010.0,43002.0,0.058133]
[1642212668957,0.87068307,43010.0,43002.0,0.058133]
[1642212669158,0.60604512,43010.0,43002.0,0.116265]
[1642212669358,0.60604512,43010.0,43006.0,0.058128]
[1642212669759,0.009,43010.0,43006.0,0.058128]
[1642212669961,0.59704512,43013.0,43006.0,0.058128]
[1642212670160,0.37625,43012.0,43009.0,0.28710745]
[1642212670463,0.37625,43012.0,43009.0,0.55503157]
[1642212670858,0.02,43013.0,43009.0,0.55503157]
[1642212671932,0.69704512,43014.0,43009.0,0.55503157]
[1642212672133,0.37625,43013.0,43009.0,0.55503157]
[1642212672532,0.47625,43013.0,43009.0,0.55503157]
[1642212673532,0.47625,43013.0,43009.0,0.26792412]
[1642212673932,1.07329512,43013.0,43009.0,0.26792412]
[1642212674734,1.09229512,43013.0,43009.0,0.26792412]
[1642212675778,0.49525,43013.0,43009.0,0.26792412]
[1642212675976,0.47625,43013.0,43009.0,0.26792412]
[1642212676574,0.49625,43013.0,43008.0,0.24978175]
[1642212677877,0.47625,43013.0,43008.0,0.24978175]
[1642212678675,0.49625,43013.0,43008.0,0.24978175]
[1642212679912,0.59704512,43012.0,43008.0,0.24978175]
[1642212680112,0.59704512,43012.0,43009.0,0.058125]
[1642212680314,0.37625,43011.0,43009.0,0.058125]
[1642212681314,0.37625,43011.0,43008.0,0.24978175]
[1642212681515,0.60704512,43012.0,43008.0,0.24978175]
[1642212681716,0.60704512,43012.0,43007.0,0.30156749]
[1642212681916,0.59704512,43012.0,43006.0,0.28459819]
[1642212682316,0.69704512,43013.0,43007.0,0.058127]
[1642212682517,0.37625,43012.0,43007.0,0.058127]
[1642212682718,0.38825,43012.0,43004.0,0.31651483]
[1642212682917,0.012,43012.0,43004.0,0.31651483]
[1642212683168,0.60904512,43012.0,43004.0,0.31651483]
[1642212683367,0.60904512,43012.0,43004.0,0.63159264]
[1642212683967,0.59704512,43012.0,43004.0,0.63159264]
[1642212684268,0.59704512,43012.0,43003.0,0.28765276]
[1642212684668,0.61404512,43012.0,43004.0,0.058132]
[1642212685171,0.017,43012.0,43004.0,0.058132]
[1642212685371,0.1632,43012.0,43000.0,0.10191538]
[1642212685569,0.33100912,43011.0,43000.0,0.10191538]
[1642212686072,0.43100912,43011.0,43000.0,0.10191538]
[1642212686470,1.12756176,43011.0,43001.0,0.29779137]
[1642212686670,1.14556176,43011.0,43001.0,0.29779137]
[1642212687517,0.69655264,43010.0,43001.0,0.29779137]
[1642212687917,0.79655264,43010.0,43001.0,0.29779137]
[1642212688117,0.36178,43007.0,43000.0,0.10191538]
[1642212688518,0.46178,43007.0,43000.0,0.10191538]
[1642212689418,0.46178,43007.0,43000.0,0.44059402]
[1642212690661,0.47878,43007.0,43000.0,0.44059402]
[1642212691961,0.46178,43007.0,43000.0,0.44059402]
[1642212692662,0.48078,43007.0,43000.0,0.44059402]
[1642212693265,0.48078,43007.0,43000.0,0.10191538]
[1642212693664,1.07773158,43007.0,43000.0,0.10191538]
[1642212693866,1.05873158,43007.0,43000.0,0.10191538]
[1642212694716,1.07773158,43007.0,43000.0,0.10191538]
[1642212696017,1.05873158,43007.0,43000.0,0.10191538]
[1642212696716,1.07573158,43007.0,43000.0,0.10191538]
[1642212696917,0.59695158,43006.0,43000.0,0.10191538]
[1642212697116,0.69695158,43006.0,43000.0,0.10191538]
[1642212698158,0.694075,43006.0,43000.0,0.10191538]
[1642212698759,0.715075,43006.0,43000.0,0.10191538]
[1642212698963,0.121,43006.0,43000.0,0.10191538]
[1642212699160,0.021,43006.0,43000.0,0.10191538]
[1642212699960,0.46178,43007.0,43000.0,0.10191538]
[1642212700761,0.48178,43007.0,43000.0,0.10191538]
[1642212702015,0.46178,43007.0,43000.0,0.10191538]
[1642212702815,0.48178,43007.0,43000.0,0.10191538]
[1642212703921,0.46178,43007.0,43000.0,0.10191538]
[1642212704122,0.1,43007.0,43000.0,0.10191538]
[1642212704518,0.0462,43009.0,43000.0,0.10191538]
[1642212705133,0.36641686,43008.0,43000.0,0.10191538]
[1642212705580,0.46641686,43008.0,43000.0,0.10191538]
[1642212706684,0.48541686,43008.0,43000.0,0.10191538]
[1642212707983,0.46641686,43008.0,43000.0,0.10191538]
[1642212708784,0.48541686,43008.0,43000.0,0.10191538]
[1642212710115,0.46641686,43008.0,43000.0,0.10191538]
[1642212710718,0.48541686,43008.0,43000.0,0.10191538]
[1642212712016,0.77925481,43008.0,43000.0,0.10191538]
[1642212712417,0.46641686,43008.0,43000.0,0.10191538]
[1642212712818,0.48541686,43008.0,43000.0,0.10191538]
[1642212714059,0.46641686,43008.0,43000.0,0.10191538]
[1642212714862,0.48441686,43008.0,43000.0,0.10191538]
[1642212715065,0.37625,43007.0,43000.0,0.10191538]
[1642212715264,0.0462,43006.0,43000.0,0.10191538]
[1642212715465,0.37625,43005.0,43000.0,0.10191538]
[1642212715666,0.0462,43004.0,43000.0,0.10191538]
[1642212715866,0.37625,43003.0,43000.0,0.10191538]
[1642212716164,0.1,43003.0,43000.0,0.10191538]
[1642212716364,0.27334098,43002.0,43000.0,0.10191538]
[1642212719440,0.1652,43004.0,43000.0,0.10191538]
[1642212719644,0.0652,43004.0,43000.0,0.10191538]
[1642212720043,0.0462,43004.0,43000.0,0.10191538]
[1642212720442,0.28163406,43003.0,43000.0,0.10191538]
[1642212721667,0.37625,43002.0,43000.0,0.10191538]
[1642212722068,0.47625,43002.0,43000.0,0.10191538]
[1642212722868,0.49425,43002.0,43000.0,0.10191538]
[1642212723269,1.20222259,43001.0,43000.0,0.10191538]
[1642212723469,0.82847259,43001.0,43000.0,0.10191538]
[1642212723669,0.92847259,43001.0,43000.0,0.10191538]
[1642212724069,0.92847259,43001.0,43000.0,0.33191538]
[1642212724823,0.94947259,43001.0,43000.0,0.33191538]
[1642212725723,0.49725,43001.0,43000.0,0.33191538]
[1642212725923,0.121,43001.0,43000.0,0.33191538]
[1642212726121,0.021,43001.0,43000.0,0.33191538]
[1642212726923,0.45719396,43002.0,43000.0,0.33191538]
[1642212727222,0.55719396,43002.0,43000.0,0.33191538]
[1642212728494,2.05599152,43001.0,43000.0,0.33191538]
[1642212728695,0.65599152,43001.0,43000.0,0.33191538]
[1642212728895,0.75599152,43001.0,43000.0,0.33191538]
[1642212730896,0.77699152,43001.0,43000.0,0.33191538]
[1642212732017,0.49725,43001.0,43000.0,0.33191538]
[1642212732217,0.47625,43001.0,43000.0,0.33191538]
[1642212732628,0.52245,43001.0,43000.0,0.33191538]
[1642212732818,0.54445,43001.0,43000.0,0.33191538]
[1642212734021,0.1682,43001.0,43000.0,0.33191538]
[1642212734220,0.1462,43001.0,43000.0,0.33191538]
[1642212734420,0.0462,43001.0,43000.0,0.33191538]
[1642212734619,0.0462,43001.0,43000.0,0.32691538]
[1642212736678,0.42245,43001.0,43000.0,0.32691538]
[1642212736877,0.52245,43001.0,43000.0,0.32691538]
[1642212738881,0.54845,43001.0,43000.0,0.32691538]
[1642212740117,0.52245,43001.0,43000.0,0.32691538]
[1642212740919,0.54945,43001.0,43000.0,0.32691538]
[1642212742120,0.52245,43001.0,43000.0,0.32691538]
[1642212742919,0.54545,43001.0,43000.0,0.32691538]
[1642212744168,0.52245,43001.0,43000.0,0.32691538]
[1642212744968,0.54545,43001.0,43000.0,0.32691538]
[1642212746071,0.52245,43001.0,43000.0,0.32691538]
[1642212746920,0.54345,43001.0,43000.0,0.32691538]
[1642212748223,0.52245,43001.0,43000.0,0.32691538]
[1642212748921,0.54545,43001.0,43000.0,0.32691538]
[1642212750224,0.52245,43001.0,43000.0,0.32691538]
[1642212750877,0.54945,43001.0,43000.0,0.32691538]
[1642212752276,0.52245,43001.0,43000.0,0.32691538]
[1642212752877,0.54945,43001.0,43000.0,0.32691538]
[1642212754321,0.52245,43001.0,43000.0,0.32691538]
[1642212754922,0.54945,43001.0,43000.0,0.32691538]
[1642212756127,0.52245,43001.0,43000.0,0.32691538]
[1642212757027,0.54845,43001.0,43000.0,0.32691538]
[1642212758376,0.52245,43001.0,43000.0,0.32691538]
[1642212758975,0.54645,43001.0,43000.0,0.32691538]
[1642212760176,0.52245,43001.0,43000.0,0.32691538]
[1642212760980,0.54345,43001.0,43000.0,0.32691538]
[1642212762230,0.52245,43001.0,43000.0,0.32691538]
[1642212762930,0.54345,43001.0,43000.0,0.32691538]
[1642212764333,0.52245,43001.0,43000.0,0.32691538]
[1642212764936,0.54345,43001.0,43000.0,0.32691538]
[1642212766173,0.52245,43001.0,43000.0,0.32691538]
[1642212766974,0.54345,43001.0,43000.0,0.32691538]
[1642212768177,0.52245,43001.0,43000.0,0.32691538]
[1642212768981,0.54345,43001.0,43000.0,0.32691538]
[1642212770228,0.52245,43001.0,43000.0,0.32691538]
[1642212771132,0.54745,43001.0,43000.0,0.32691538]
[1642212772333,0.52245,43001.0,43000.0,0.32691538]
[1642212772935,0.54745,43001.0,43000.0,0.32691538]
[1642212774172,0.52245,43001.0,43000.0,0.32691538]
[1642212775074,0.54645,43001.0,43000.0,0.32691538]
[1642212775473,0.83780802,43001.0,43000.0,0.32691538]
[1642212776275,0.81380802,43001.0,43000.0,0.32691538]
[1642212776931,0.83480802,43001.0,43000.0,0.32691538]
[1642212777730,0.54345,43001.0,43000.0,0.32691538]
[1642212778230,0.52245,43001.0,43000.0,0.32691538]
[1642212779029,0.59545,43001.0,43000.0,0.32691538]
[1642212780231,0.57245,43001.0,43000.0,0.32691538]
[1642212781081,0.87493178,43001.0,43000.0,0.32691538]
[1642212782183,0.59545,43001.0,43000.0,0.32691538]
[1642212782381,0.57245,43001.0,43000.0,0.32691538]
[1642212782982,0.86960398,43001.0,43000.0,0.32691538]
[1642212783781,3.11960398,43001.0,43000.0,0.32108572]
[1642212784181,2.34376648,43000.0,42987.0,0.3028]
[1642212784438,0.11978325,42995.0,42987.0,0.3028]
[1642212784638,0.41757877,42989.0,42984.0,1.05111603]
[1642212784842,0.3189079,42988.0,42983.0,0.79596416]
[1642212785040,0.1462,42988.0,42983.0,0.79596416]
[1642212785839,0.1462,42988.0,42979.0,0.6427259]
[1642212785840,0.1462,42988.0,42984.0,0.26434727]
[1642212786041,0.1462,42988.0,42979.0,0.6427259]
[1642212786241,0.0462,42988.0,42979.0,0.3326259]
[1642212786643,0.04493,42988.0,42985.0,2.23797058]
[1642212787044,0.04493,42988.0,42985.0,2.53192291]
[1642212787446,0.04493,42988.0,42985.0,0.29395233]
[1642212787644,0.37625,42987.0,42979.0,0.3326259]
[1642212787843,0.0462,42986.0,42979.0,0.3326259]
[1642212788676,0.0462,42986.0,42982.0,0.24327947]
[1642212790480,0.0462,42986.0,42984.0,1.70851825]
[1642212791480,0.0462,42986.0,42984.0,1.93851825]
[1642212792933,0.0462,42986.0,42984.0,0.23]
[1642212795139,0.27314849,42985.0,42984.0,0.23]
[1642212796782,0.64939849,42985.0,42984.0,0.23]
[1642212797181,0.74939849,42985.0,42984.0,0.23]
[1642212798586,0.47625,42985.0,42984.0,0.23]
[1642212799084,0.49325,42985.0,42984.0,0.23]
[1642212799730,0.117,42985.0,42984.0,0.23]
[1642212799930,0.017,42985.0,42984.0,0.23]
[1642212800334,0.43546924,42988.0,42984.0,0.23]
[1642212800531,0.15604443,42988.0,42984.0,0.23]
[1642212800731,0.10604443,42988.0,42984.0,0.23]
[1642212800931,0.00604443,42988.0,42984.0,0.23]
[1642212806829,0.00604347,42988.0,42984.0,0.23]
[1642212824230,0.00604347,42988.0,42984.0,0.219]
[1642212833478,0.00604347,42988.0,42982.0,2.89504403]
[1642212834480,0.27556255,42988.0,42982.0,2.89504403]
[1642212834881,0.27115642,42987.0,42982.0,2.61121969]
[1642212835080,0.37556255,42988.0,42982.0,2.61121969]
[1642212835282,0.27529122,42987.0,42982.0,2.61121969]
[1642212835683,0.27529122,42987.0,42983.0,0.01292128]
[1642212835883,0.27529122,42987.0,42983.0,0.01277046]
[1642212836083,0.27678728,42987.0,42983.0,0.01259259]
[1642212836283,0.27678728,42987.0,42983.0,0.01248442]
[1642212836485,0.27678728,42987.0,42983.0,0.01162941]
[1642212836684,0.22674725,42987.0,42983.0,0.01162941]
[1642212836952,0.52604348,42988.0,42983.0,0.01162941]
[1642212839160,0.27173832,42987.0,42983.0,0.01162941]
[1642212839657,0.37625,42986.0,42983.0,0.01162941]
[1642212840154,0.47625,42986.0,42983.0,0.01162941]
[1642212840355,0.47625,42986.0,42984.0,2.64846234]
[1642212840608,0.1,42986.0,42984.0,2.64846234]
[1642212841008,0.52604348,42988.0,42984.0,2.64846234]
[1642212841209,0.27534848,42987.0,42984.0,2.64846234]
[1642212841418,0.27314618,42987.0,42984.0,2.64846234]
[1642212841609,0.27314618,42987.0,42984.0,2.9666048]
[1642212842008,0.53504348,42988.0,42984.0,2.9666048]
[1642212842409,0.52604348,42988.0,42984.0,2.9666048]
[1642212843009,0.27090524,42987.0,42984.0,2.64846234]
[1642212843210,0.53504348,42988.0,42984.0,2.64846234]
[1642212843411,0.53504348,42988.0,42983.0,0.01162941]
[1642212843611,0.37625,42987.0,42983.0,0.01162941]
[1642212843811,0.6467893,42987.0,42977.0,0.33754208]
[1642212844011,0.47625,42987.0,42979.0,0.29063925]
[1642212844537,0.1,42987.0,42979.0,0.34880125]
[1642212845136,0.53504348,42988.0,42979.0,0.34880125]
[1642212845336,0.53504348,42988.0,42982.0,2.43070384]
[1642212846336,0.52604348,42988.0,42982.0,2.43070384]
[1642212847038,0.52604348,42988.0,42983.0,0.38398521]
[1642212847239,0.53504348,42988.0,42983.0,0.38398521]
[1642212848185,0.53504348,42988.0,42986.0,0.30892783]
[1642212848385,0.52604348,42988.0,42986.0,0.30892783]
[1642212849186,0.57104348,42988.0,42986.0,0.30892783]
[1642212850490,0.52604348,42988.0,42986.0,0.30892783]
[1642212851189,0.57104348,42988.0,42986.0,0.30892783]
[1642212851839,0.57104348,42988.0,42983.0,0.38398521]
[1642212852635,0.52604348,42988.0,42983.0,0.38398521]
[1642212853035,0.52604348,42988.0,42985.0,0.33940552]
[1642212853237,0.53504348,42988.0,42985.0,0.33940552]
[1642212853837,0.42900001,42988.0,42985.0,0.33940552]
[1642212854039,0.42900001,42988.0,42986.0,0.12767604]
[1642212854438,0.42000001,42988.0,42986.0,0.12767604]
[1642212854639,0.42000001,42988.0,42987.0,1.07625]
[1642212854837,0.42000001,42988.0,42987.0,0.37625]
[1642212855238,0.42500001,42988.0,42987.0,0.37625]
[1642212856384,0.42500001,42988.0,42986.0,0.116306]
[1642212856584,0.42000001,42988.0,42986.0,0.116306]
[1642212856986,0.42000001,42988.0,42987.0,0.37625]
[1642212857191,0.42500001,42988.0,42987.0,0.37625]
[1642212857788,0.005,42988.0,42987.0,0.50649851]
[1642212858388,1.19012924,42999.0,42987.0,0.50649851]
[1642212858590,0.37625,42998.0,42994.0,0.30372407]
[1642212863504,0.37625,42998.0,42994.0,0.53372407]
[1642212870048,0.37625,42998.0,42994.0,0.52372407]
[1642212870245,0.37625,42998.0,42994.0,0.57372407]
[1642212870687,0.17608988,42998.0,42994.0,0.52372407]
[1642212879194,0.17608988,42998.0,42995.0,0.058141]
[1642212879394,0.17608988,42998.0,42995.0,0.116281]
[1642212879994,0.17608988,42998.0,42995.0,0.058141]
[1642212882246,0.015,43001.0,42995.0,0.058141]
[1642212882247,0.015,43001.0,42995.0,0.143821]
[1642212882444,0.015,43001.0,42996.0,0.37753857]
[1642212882646,0.86647138,43008.0,43000.0,0.33973497]
[1642212882846,0.376298,43007.0,43000.0,0.33973497]
[1642212883048,0.376298,43007.0,43001.0,0.27846006]
[1642212887692,0.476298,43007.0,43001.0,0.27846006]
[1642212888593,0.47601809,43007.0,43001.0,0.27846006]
[1642212889454,0.49001809,43007.0,43001.0,0.27846006]
[1642212889655,0.59642924,43006.0,43001.0,0.27846006]
[1642212889954,0.376298,43005.0,43001.0,0.27846006]
[1642212891156,0.97272724,43005.0,43001.0,0.27846006]
[1642212891857,0.97272724,43005.0,43001.0,0.32846006]
[1642212892057,0.82260715,43005.0,43001.0,0.32846006]
[1642212892256,0.82260715,43005.0,43001.0,0.27846006]
[1642212892457,0.22617791,43005.0,43001.0,0.27846006]
[1642212893089,0.82260715,43005.0,43001.0,0.27846006]
[1642212893290,0.82260715,43005.0,42996.0,0.00124057]
[1642212893593,0.82260715,43005.0,42991.0,0.00126223]
[1642212893791,0.33820263,43001.0,42991.0,0.00126223]
[1642212893990,0.33820263,43001.0,42994.0,0.23]
[1642212893991,0.29426126,42998.0,42994.0,0.23]
[1642212894193,0.68802,42997.0,42994.0,0.23]
[1642212895289,0.70802,42997.0,42994.0,0.23]
[1642212896591,0.68802,42997.0,42994.0,0.23]
[1642212897443,0.70802,42997.0,42994.0,0.23]
[1642212897643,0.396299,42997.0,42994.0,0.23]
[1642212898647,0.4043,43000.0,42994.0,0.23]
[1642212899445,0.4233,43000.0,42994.0,0.23]
[1642212899646,0.376299,42999.0,42994.0,0.23]
[1642212901188,0.4043,43000.0,42994.0,0.23]
[1642212901387,0.4243,43000.0,42994.0,0.23]